[Event "Late-Titled-Tuesday-Blitz-September-05-2023"]
[Site "Chess.com"]
[Date "2023.09.05"]
[Round "8"]
[White "Rutricks"]
[Black "geordie_derraugh"]
[Result "1-0"]
[WhiteElo "2685"]
[BlackElo "2498"]
[TimeControl "180+1"]
[EndTime "15:29:31 PDT"]
[Termination "Rutricks won on time"]

1. c4 {[%clk 0:03:00.9]} 1... Nf6 {[%clk 0:02:55.5]} 2. Nf3 {[%clk 0:03:00.6]}
2... g6 {[%clk 0:02:53.5]} 3. g3 {[%clk 0:03:00.7]} 3... Bg7 {[%clk 0:02:53.4]}
4. Bg2 {[%clk 0:03:01.4]} 4... O-O {[%clk 0:02:53.3]} 5. O-O {[%clk 0:03:02.1]}
5... d5 {[%clk 0:02:53]} 6. cxd5 {[%clk 0:02:56.9]} 6... Nxd5 {[%clk 0:02:52.9]}
7. d4 {[%clk 0:02:56.7]} 7... Bg4 {[%clk 0:02:45.8]} 8. h3 {[%clk 0:02:54.6]}
8... Bf5 {[%clk 0:02:44.5]} 9. Qb3 {[%clk 0:02:46.8]} 9... Nb6 {[%clk
0:02:40.6]} 10. Nc3 {[%clk 0:02:46.8]} 10... Nc6 {[%clk 0:02:37.8]} 11. e4
{[%clk 0:02:37.9]} 11... Bd7 {[%clk 0:02:26.3]} 12. Be3 {[%clk 0:01:56.6]} 12...
e5 {[%clk 0:02:22]} 13. dxe5 {[%clk 0:01:38.8]} 13... Nxe5 {[%clk 0:02:18.5]}
14. Nxe5 {[%clk 0:01:38.5]} 14... Bxe5 {[%clk 0:02:18.5]} 15. f4 {[%clk
0:01:39.4]} 15... Bg7 {[%clk 0:02:16.5]} 16. Rad1 {[%clk 0:01:39.6]} 16... Qc8
{[%clk 0:01:54.2]} 17. Kh2 {[%clk 0:01:35.2]} 17... c5 {[%clk 0:01:53]} 18. e5
{[%clk 0:01:15.1]} 18... Be6 {[%clk 0:01:20.5]} 19. Qb5 {[%clk 0:01:03.2]} 19...
c4 {[%clk 0:01:13.4]} 20. Bxb6 {[%clk 0:00:57.4]} 20... axb6 {[%clk 0:01:14.3]}
21. Qxb6 {[%clk 0:00:58.1]} 21... Ra6 {[%clk 0:01:09.2]} 22. Qxb7 {[%clk
0:00:48.1]} 22... Qxb7 {[%clk 0:01:09]} 23. Bxb7 {[%clk 0:00:47.6]} 23... Rb6
{[%clk 0:01:09.5]} 24. Bg2 {[%clk 0:00:29.9]} 24... Rxb2 {[%clk 0:01:09.1]} 25.
Rb1 {[%clk 0:00:30.8]} 25... Rfb8 {[%clk 0:00:59.6]} 26. Rxb2 {[%clk 0:00:28.4]}
26... Rxb2 {[%clk 0:00:59.3]} 27. Rb1 {[%clk 0:00:29.2]} 27... Rc2 {[%clk
0:00:59.4]} 28. Rb8+ {[%clk 0:00:29.1]} 28... Bf8 {[%clk 0:00:59.2]} 29. Ne4
{[%clk 0:00:27.9]} 29... Rxa2 {[%clk 0:00:49.3]} 30. Kg1 {[%clk 0:00:15]} 30...
Kg7 {[%clk 0:00:47.9]} 31. Bf1 {[%clk 0:00:13.7]} 31... Bd5 {[%clk 0:00:45.5]}
32. Bg2 {[%clk 0:00:11.5]} 32... Bc5+ {[%clk 0:00:44.8]} 33. Nxc5 {[%clk
0:00:10.9]} 33... Rxg2+ {[%clk 0:00:43.8]} 34. Kf1 {[%clk 0:00:11.2]} 34... Rxg3
{[%clk 0:00:44]} 35. Rd8 {[%clk 0:00:10.4]} 35... Bc6 {[%clk 0:00:29.5]} 36. Rc8
{[%clk 0:00:10.7]} 36... Bb5 {[%clk 0:00:29.6]} 37. Rb8 {[%clk 0:00:10.8]} 37...
Bc6 {[%clk 0:00:25.7]} 38. Rc8 {[%clk 0:00:10.4]} 38... Bf3 {[%clk 0:00:22.6]}
39. Kf2 {[%clk 0:00:10.5]} 39... Rxh3 {[%clk 0:00:22.7]} 40. Rc7 {[%clk
0:00:10.8]} 40... Bd5 {[%clk 0:00:22.1]} 41. Rd7 {[%clk 0:00:10.4]} 41... Bc6
{[%clk 0:00:19]} 42. Ne6+ {[%clk 0:00:10.9]} 42... Kh6 {[%clk 0:00:18.4]} 43.
Rxf7 {[%clk 0:00:11.5]} 43... c3 {[%clk 0:00:17.2]} 44. Ng5 {[%clk 0:00:10.6]}
44... Rh2+ {[%clk 0:00:16.5]} 45. Ke3 {[%clk 0:00:04.9]} 45... Kh5 {[%clk
0:00:09.1]} 46. Rxh7+ {[%clk 0:00:05.2]} 46... Kg4 {[%clk 0:00:09.7]} 47. Rxh2
{[%clk 0:00:06]} 47... c2 {[%clk 0:00:10.1]} 48. Rxc2 {[%clk 0:00:06.3]} 1-0

[Event "Late-Titled-Tuesday-Blitz-September-05-2023"]
[Site "Chess.com"]
[Date "2023.09.05"]
[Round "8"]
[White "leoduarte"]
[Black "Bilan_Danila"]
[Result "1-0"]
[WhiteElo "2396"]
[BlackElo "2490"]
[TimeControl "180+1"]
[EndTime "15:29:31 PDT"]
[Termination "leoduarte won on time"]

1. d4 {[%clk 0:03:00.9]} 1... d5 {[%clk 0:02:59.3]} 2. Nf3 {[%clk 0:03:00.7]}
2... Nf6 {[%clk 0:02:59]} 3. Bf4 {[%clk 0:03:01.3]} 3... c5 {[%clk 0:02:59.2]}
4. e3 {[%clk 0:03:01]} 4... Nc6 {[%clk 0:02:59.8]} 5. Nbd2 {[%clk 0:03:00.1]}
5... Bg4 {[%clk 0:02:58.8]} 6. c3 {[%clk 0:02:51.3]} 6... Qb6 {[%clk 0:02:51.8]}
7. b3 {[%clk 0:02:33.3]} 7... e6 {[%clk 0:02:46.7]} 8. Be2 {[%clk 0:02:26.6]}
8... cxd4 {[%clk 0:02:43.1]} 9. Nxd4 {[%clk 0:02:22.8]} 9... Bxe2 {[%clk
0:02:35.7]} 10. Qxe2 {[%clk 0:02:21.6]} 10... Nxd4 {[%clk 0:02:26.3]} 11. exd4
{[%clk 0:02:21.3]} 11... Rc8 {[%clk 0:02:18.4]} 12. Qd3 {[%clk 0:02:18.3]} 12...
Ba3 {[%clk 0:01:52.5]} 13. Rb1 {[%clk 0:01:56.9]} 13... Qc6 {[%clk 0:01:42.8]}
14. c4 {[%clk 0:01:46.1]} 14... dxc4 {[%clk 0:01:42.6]} 15. bxc4 {[%clk
0:01:45.5]} 15... Qxg2 {[%clk 0:01:36.8]} 16. Rf1 {[%clk 0:01:35.9]} 16... Be7
{[%clk 0:01:34.6]} 17. Qg3 {[%clk 0:01:20.8]} 17... Qxg3 {[%clk 0:01:26.2]} 18.
hxg3 {[%clk 0:01:20.4]} 18... b6 {[%clk 0:01:21.1]} 19. Ke2 {[%clk 0:01:17.3]}
19... O-O {[%clk 0:01:09.3]} 20. a4 {[%clk 0:01:10.3]} 20... Rfd8 {[%clk
0:01:07.3]} 21. Be3 {[%clk 0:00:47.5]} 21... Ng4 {[%clk 0:01:02.2]} 22. a5
{[%clk 0:00:46.1]} 22... Nxe3 {[%clk 0:00:51.9]} 23. fxe3 {[%clk 0:00:47]} 23...
Rc6 {[%clk 0:00:35.4]} 24. axb6 {[%clk 0:00:45]} 24... axb6 {[%clk 0:00:34.8]}
25. Rb5 {[%clk 0:00:42.6]} 25... Ra8 {[%clk 0:00:27.3]} 26. Rfb1 {[%clk
0:00:40.6]} 26... Bd8 {[%clk 0:00:27.5]} 27. R1b2 {[%clk 0:00:38.4]} 27... g6
{[%clk 0:00:24.1]} 28. d5 {[%clk 0:00:20.5]} 28... exd5 {[%clk 0:00:19.6]} 29.
cxd5 {[%clk 0:00:21.4]} 29... Rc5 {[%clk 0:00:11.6]} 30. Rxc5 {[%clk 0:00:20.8]}
30... bxc5 {[%clk 0:00:12.5]} 31. Ne4 {[%clk 0:00:21.4]} 31... c4 {[%clk
0:00:10.5]} 32. Rc2 {[%clk 0:00:16.5]} 32... Ra4 {[%clk 0:00:10.9]} 33. Nd6
{[%clk 0:00:16.7]} 33... Ra5 {[%clk 0:00:08.6]} 34. e4 {[%clk 0:00:15.7]} 34...
Ra3 {[%clk 0:00:06.4]} 35. Rxc4 {[%clk 0:00:13.1]} 35... Kg7 {[%clk 0:00:05.4]}
36. Rc8 {[%clk 0:00:09]} 36... Bb6 {[%clk 0:00:02.7]} 37. Nc4 {[%clk 0:00:04.9]}
37... Ra2+ {[%clk 0:00:02.1]} 38. Kf3 {[%clk 0:00:03.4]} 38... Bg1 {[%clk
0:00:02.1]} 39. d6 {[%clk 0:00:02.8]} 39... Rf2+ {[%clk 0:00:03]} 40. Kg4 {[%clk
0:00:02.8]} 40... h5+ {[%clk 0:00:01.1]} 41. Kh3 {[%clk 0:00:02.8]} 1-0

[Event "Late-Titled-Tuesday-Blitz-September-05-2023"]
[Site "Chess.com"]
[Date "2023.09.05"]
[Round "8"]
[White "SalihEke"]
[Black "temus_galaktionov"]
[Result "0-1"]
[WhiteElo "2545"]
[BlackElo "2819"]
[TimeControl "180+1"]
[EndTime "15:29:32 PDT"]
[Termination "temus_galaktionov won by resignation"]

1. d4 {[%clk 0:03:00.9]} 1... c6 {[%clk 0:03:00.9]} 2. c3 {[%clk 0:02:58.8]}
2... g6 {[%clk 0:03:01.8]} 3. Nf3 {[%clk 0:02:59.5]} 3... Bg7 {[%clk 0:03:01.4]}
4. Bf4 {[%clk 0:03:00.2]} 4... d6 {[%clk 0:03:01.9]} 5. Nbd2 {[%clk 0:03:00.4]}
5... Nd7 {[%clk 0:03:02.5]} 6. e4 {[%clk 0:03:00]} 6... e5 {[%clk 0:02:59.4]} 7.
Bg3 {[%clk 0:02:59.3]} 7... Ngf6 {[%clk 0:02:11.8]} 8. dxe5 {[%clk 0:02:58.7]}
8... dxe5 {[%clk 0:02:10.9]} 9. Nxe5 {[%clk 0:02:29.6]} 9... Nh5 {[%clk
0:02:08.6]} 10. Nxd7 {[%clk 0:02:12.6]} 10... Nxg3 {[%clk 0:02:04.3]} 11. hxg3
{[%clk 0:02:12.8]} 11... Bxd7 {[%clk 0:01:59.1]} 12. Be2 {[%clk 0:02:13.1]}
12... O-O {[%clk 0:01:58.9]} 13. O-O {[%clk 0:02:13.6]} 13... Qe7 {[%clk
0:01:57]} 14. Qc2 {[%clk 0:02:09.8]} 14... Rae8 {[%clk 0:01:54.8]} 15. Rfe1
{[%clk 0:02:08.1]} 15... h5 {[%clk 0:01:53.3]} 16. Rad1 {[%clk 0:02:05.4]} 16...
Bc8 {[%clk 0:01:45]} 17. Bf3 {[%clk 0:02:00.9]} 17... b5 {[%clk 0:01:37.4]} 18.
a4 {[%clk 0:01:50.8]} 18... a6 {[%clk 0:01:34.1]} 19. axb5 {[%clk 0:01:51]}
19... cxb5 {[%clk 0:01:32.2]} 20. Nb3 {[%clk 0:01:50.3]} 20... Be5 {[%clk
0:01:24.7]} 21. Nd4 {[%clk 0:01:46.9]} 21... Qc5 {[%clk 0:01:24.4]} 22. Qd2
{[%clk 0:01:05.7]} 22... Rd8 {[%clk 0:01:17.4]} 23. Qe3 {[%clk 0:01:03]} 23...
b4 {[%clk 0:01:09.5]} 24. cxb4 {[%clk 0:00:46.9]} 24... Qb6 {[%clk 0:01:02]} 25.
Nf5 {[%clk 0:00:43.4]} 25... Qxe3 {[%clk 0:00:56]} 26. Nxe3 {[%clk 0:00:42.5]}
26... Bxb2 {[%clk 0:00:55.7]} 27. Nd5 {[%clk 0:00:40.4]} 27... Be6 {[%clk
0:00:55.5]} 28. Be2 {[%clk 0:00:35.7]} 28... Bxd5 {[%clk 0:00:48.2]} 29. Rxd5
{[%clk 0:00:35.8]} 29... Rxd5 {[%clk 0:00:46.5]} 30. exd5 {[%clk 0:00:36.1]}
30... Bc3 {[%clk 0:00:47.1]} 31. Rb1 {[%clk 0:00:29]} 31... Rb8 {[%clk
0:00:45.3]} 32. Bxa6 {[%clk 0:00:25.2]} 32... Rxb4 {[%clk 0:00:45.1]} 33. Rc1
{[%clk 0:00:20.9]} 33... Be5 {[%clk 0:00:40.9]} 34. f4 {[%clk 0:00:15.8]} 34...
Bd4+ {[%clk 0:00:30.4]} 35. Kh2 {[%clk 0:00:16]} 35... Rb6 {[%clk 0:00:28]} 36.
Bd3 {[%clk 0:00:10.3]} 36... Rd6 {[%clk 0:00:24.5]} 37. Be4 {[%clk 0:00:09.8]}
37... Kf8 {[%clk 0:00:24.7]} 38. Rc7 {[%clk 0:00:09.4]} 38... Bf2 {[%clk
0:00:20.8]} 39. Kh3 {[%clk 0:00:09.7]} 39... Rb6 {[%clk 0:00:19.1]} 40. g4
{[%clk 0:00:07.3]} 40... hxg4+ {[%clk 0:00:15.2]} 41. Kxg4 {[%clk 0:00:07.5]}
41... f5+ {[%clk 0:00:15.8]} 42. Bxf5 {[%clk 0:00:08.2]} 42... gxf5+ {[%clk
0:00:16.7]} 43. Kxf5 {[%clk 0:00:09.1]} 43... Rb5 {[%clk 0:00:11.8]} 44. Ke6
{[%clk 0:00:06.5]} 44... Bg3 {[%clk 0:00:11]} 45. f5 {[%clk 0:00:06.3]} 45...
Bxc7 {[%clk 0:00:10.3]} 0-1

[Event "Late-Titled-Tuesday-Blitz-September-05-2023"]
[Site "Chess.com"]
[Date "2023.09.05"]
[Round "8"]
[White "Tomytoteph"]
[Black "vanyakuba"]
[Result "0-1"]
[WhiteElo "2580"]
[BlackElo "2418"]
[TimeControl "180+1"]
[EndTime "15:29:40 PDT"]
[Termination "vanyakuba won by resignation"]

1. e4 {[%clk 0:02:58.1]} 1... d5 {[%clk 0:02:59.5]} 2. exd5 {[%clk 0:02:57.4]}
2... Qxd5 {[%clk 0:03:00.4]} 3. Nc3 {[%clk 0:02:57.3]} 3... Qa5 {[%clk
0:03:00.3]} 4. Nf3 {[%clk 0:02:57.1]} 4... Nf6 {[%clk 0:02:59.9]} 5. Bc4 {[%clk
0:02:56.4]} 5... Bg4 {[%clk 0:02:59]} 6. h3 {[%clk 0:02:56.5]} 6... Bh5 {[%clk
0:02:58.8]} 7. O-O {[%clk 0:02:56.6]} 7... Nc6 {[%clk 0:02:58.6]} 8. d3 {[%clk
0:02:56.8]} 8... O-O-O {[%clk 0:02:57.4]} 9. Bd2 {[%clk 0:02:56.2]} 9... Nd4
{[%clk 0:02:28.4]} 10. Ne4 {[%clk 0:02:36.5]} 10... Nxf3+ {[%clk 0:01:57.5]} 11.
Qxf3 {[%clk 0:02:09.2]} 11... Bxf3 {[%clk 0:01:56.4]} 12. Bxa5 {[%clk
0:02:08.2]} 12... Bxe4 {[%clk 0:01:41.6]} 13. dxe4 {[%clk 0:02:07.3]} 13... e6
{[%clk 0:01:42.3]} 14. Bd3 {[%clk 0:02:04]} 14... Bc5 {[%clk 0:01:36.3]} 15. Bc3
{[%clk 0:02:02.6]} 15... Bd4 {[%clk 0:01:36.4]} 16. Bxd4 {[%clk 0:02:01.3]}
16... Rxd4 {[%clk 0:01:37.3]} 17. f3 {[%clk 0:02:01.7]} 17... Rhd8 {[%clk
0:01:36.7]} 18. Kf2 {[%clk 0:01:59.5]} 18... c5 {[%clk 0:01:36.5]} 19. b3 {[%clk
0:01:55.6]} 19... e5 {[%clk 0:01:22]} 20. Ke3 {[%clk 0:01:53.7]} 20... Nh5
{[%clk 0:01:20.6]} 21. Bc4 {[%clk 0:01:47.6]} 21... R8d7 {[%clk 0:01:15.9]} 22.
Bb5 {[%clk 0:01:41.5]} 22... R7d6 {[%clk 0:01:13.2]} 23. Bc4 {[%clk 0:01:41.5]}
23... Rd7 {[%clk 0:01:13.2]} 24. Bb5 {[%clk 0:01:34.5]} 24... R7d6 {[%clk
0:01:10]} 25. Be8 {[%clk 0:01:34.7]} 25... Rf6 {[%clk 0:01:07]} 26. c3 {[%clk
0:01:31.7]} 26... Rd8 {[%clk 0:01:04.5]} 27. Bb5 {[%clk 0:01:31.7]} 27... Nf4
{[%clk 0:00:58.8]} 28. Rf2 {[%clk 0:01:31.4]} 28... a6 {[%clk 0:00:52.3]} 29.
Bf1 {[%clk 0:01:31.3]} 29... h5 {[%clk 0:00:51]} 30. g3 {[%clk 0:01:31.3]} 30...
Ne6 {[%clk 0:00:45.8]} 31. h4 {[%clk 0:01:30.6]} 31... Kc7 {[%clk 0:00:45.3]}
32. f4 {[%clk 0:01:24.5]} 32... Rg6 {[%clk 0:00:30]} 33. Kf3 {[%clk 0:01:19.7]}
33... exf4 {[%clk 0:00:28.7]} 34. gxf4 {[%clk 0:01:20]} 34... Rg4 {[%clk
0:00:29]} 35. f5 {[%clk 0:01:17.4]} 35... Nf4 {[%clk 0:00:21.5]} 36. Rh2 {[%clk
0:01:09.6]} 36... Nd3 {[%clk 0:00:19.4]} 37. Ke3 {[%clk 0:01:03.4]} 37... Rg3+
{[%clk 0:00:16.8]} 38. Ke2 {[%clk 0:01:03.1]} 38... Nf4+ {[%clk 0:00:14.8]} 39.
Kf2 {[%clk 0:01:03.3]} 39... Rxc3 {[%clk 0:00:15.3]} 40. Kg1 {[%clk 0:00:55.9]}
40... Rg3+ {[%clk 0:00:12.8]} 41. Kf2 {[%clk 0:00:55.6]} 41... Rc3 {[%clk
0:00:09.3]} 42. Kg1 {[%clk 0:00:55.4]} 42... Rd4 {[%clk 0:00:08.5]} 43. Re1
{[%clk 0:00:54.7]} 43... Rg3+ {[%clk 0:00:04.9]} 44. Kf2 {[%clk 0:00:55]} 44...
Rc3 {[%clk 0:00:05.7]} 45. Rh1 {[%clk 0:00:50.7]} 45... Rc2+ {[%clk 0:00:05.4]}
46. Kf3 {[%clk 0:00:51.1]} 46... Nd3 {[%clk 0:00:04.7]} 47. Re3 {[%clk
0:00:47.7]} 47... Ne5+ {[%clk 0:00:04.3]} 48. Kf4 {[%clk 0:00:48.3]} 48... f6
{[%clk 0:00:04.9]} 49. Rg1 {[%clk 0:00:48.8]} 49... Rd7 {[%clk 0:00:05]} 50. Rg2
{[%clk 0:00:47]} 50... Rxg2 {[%clk 0:00:04.6]} 51. Bxg2 {[%clk 0:00:47.9]} 51...
Rd3 {[%clk 0:00:03.4]} 52. Re2 {[%clk 0:00:37.3]} 52... Rd1 {[%clk 0:00:02.3]}
53. Rc2 {[%clk 0:00:37]} 53... b6 {[%clk 0:00:02.6]} 54. b4 {[%clk 0:00:37.2]}
54... Kd6 {[%clk 0:00:03]} 55. bxc5+ {[%clk 0:00:31.3]} 55... bxc5 {[%clk
0:00:03.9]} 56. Rb2 {[%clk 0:00:32.1]} 56... Nd3+ {[%clk 0:00:04.2]} 57. Ke3
{[%clk 0:00:32.6]} 57... Nxb2 {[%clk 0:00:05.1]} 0-1

[Event "Late-Titled-Tuesday-Blitz-September-05-2023"]
[Site "Chess.com"]
[Date "2023.09.05"]
[Round "8"]
[White "jorquerino"]
[Black "miraitrunks"]
[Result "0-1"]
[WhiteElo "2326"]
[BlackElo "2107"]
[TimeControl "180+1"]
[EndTime "15:29:41 PDT"]
[Termination "miraitrunks won on time"]

1. e4 {[%clk 0:02:56]} 1... c5 {[%clk 0:02:52]} 2. Nc3 {[%clk 0:02:55.4]} 2...
Nc6 {[%clk 0:02:51.1]} 3. g3 {[%clk 0:02:55.9]} 3... g6 {[%clk 0:02:50.9]} 4.
Bg2 {[%clk 0:02:56.4]} 4... Bg7 {[%clk 0:02:49.6]} 5. d3 {[%clk 0:02:56.9]} 5...
d6 {[%clk 0:02:48.7]} 6. Be3 {[%clk 0:02:57.4]} 6... Nf6 {[%clk 0:02:49.1]} 7.
h3 {[%clk 0:02:55.1]} 7... O-O {[%clk 0:02:49.6]} 8. Qd2 {[%clk 0:02:52.9]} 8...
Rb8 {[%clk 0:02:49.4]} 9. f4 {[%clk 0:02:51.6]} 9... Nd4 {[%clk 0:02:42.1]} 10.
Nd1 {[%clk 0:02:44.4]} 10... d5 {[%clk 0:02:37.1]} 11. e5 {[%clk 0:02:34.9]}
11... Nd7 {[%clk 0:02:33.6]} 12. c3 {[%clk 0:02:24.3]} 12... Nf5 {[%clk
0:02:27.2]} 13. Bf2 {[%clk 0:02:23.7]} 13... e6 {[%clk 0:02:25.4]} 14. Nf3
{[%clk 0:02:20.3]} 14... b5 {[%clk 0:02:21.4]} 15. g4 {[%clk 0:02:18.3]} 15...
Ne7 {[%clk 0:02:14.9]} 16. O-O {[%clk 0:02:17.1]} 16... b4 {[%clk 0:02:13.4]}
17. Ne3 {[%clk 0:02:08.7]} 17... bxc3 {[%clk 0:02:11.2]} 18. bxc3 {[%clk
0:02:09.6]} 18... Ba6 {[%clk 0:02:10.3]} 19. g5 {[%clk 0:02:04]} 19... Nf5
{[%clk 0:02:04.7]} 20. Ng4 {[%clk 0:02:03.5]} 20... d4 {[%clk 0:02:01.2]} 21. c4
{[%clk 0:01:59.8]} 21... Rb4 {[%clk 0:01:53.2]} 22. Nxd4 {[%clk 0:01:37.1]}
22... Nxd4 {[%clk 0:01:37.5]} 23. Bxd4 {[%clk 0:01:36]} 23... Bb7 {[%clk
0:01:14.2]} 24. Bxb7 {[%clk 0:01:13.1]} 24... Rxb7 {[%clk 0:01:14.7]} 25. Bc3
{[%clk 0:01:07.6]} 25... Nb6 {[%clk 0:01:13.4]} 26. Nf6+ {[%clk 0:01:02.2]}
26... Bxf6 {[%clk 0:01:12.3]} 27. exf6 {[%clk 0:00:56.6]} 27... Qd7 {[%clk
0:01:11.4]} 28. Rad1 {[%clk 0:00:51.4]} 28... Na4 {[%clk 0:01:08.9]} 29. Be5
{[%clk 0:00:49.7]} 29... Rd8 {[%clk 0:01:03.9]} 30. Qf2 {[%clk 0:00:47]} 30...
Qe8 {[%clk 0:00:54.6]} 31. Qg2 {[%clk 0:00:37.8]} 31... Rbd7 {[%clk 0:00:46.4]}
32. Rf3 {[%clk 0:00:31.5]} 32... Nb6 {[%clk 0:00:44.6]} 33. h4 {[%clk
0:00:20.5]} 33... Nxc4 {[%clk 0:00:41.6]} 34. h5 {[%clk 0:00:19.9]} 34... Nxe5
{[%clk 0:00:28.6]} 35. fxe5 {[%clk 0:00:20.8]} 35... c4 {[%clk 0:00:27.9]} 36.
hxg6 {[%clk 0:00:20]} 36... fxg6 {[%clk 0:00:28.6]} 37. Rdf1 {[%clk 0:00:17.7]}
37... Rf7 {[%clk 0:00:25.4]} 38. dxc4 {[%clk 0:00:17.3]} 38... Qc6 {[%clk
0:00:22.9]} 39. Qc2 {[%clk 0:00:16.6]} 39... Rd4 {[%clk 0:00:21.4]} 40. c5
{[%clk 0:00:12.6]} 40... Rg4+ {[%clk 0:00:14.5]} 41. Kh2 {[%clk 0:00:10.2]}
41... Rxg5 {[%clk 0:00:14.5]} 42. Rd3 {[%clk 0:00:07.5]} 42... Rxe5 {[%clk
0:00:10.2]} 43. Rd8+ {[%clk 0:00:06.8]} 43... Rf8 {[%clk 0:00:10]} 44. f7+
{[%clk 0:00:07]} 44... Kg7 {[%clk 0:00:09.7]} 45. Rxf8 {[%clk 0:00:07.5]} 45...
Kxf8 {[%clk 0:00:09.5]} 46. Qc3 {[%clk 0:00:07.1]} 46... Rh5+ {[%clk 0:00:09.1]}
47. Kg3 {[%clk 0:00:06.7]} 47... Qc7+ {[%clk 0:00:08.2]} 48. Kg2 {[%clk
0:00:05.4]} 48... Qh2+ {[%clk 0:00:07.7]} 49. Kf3 {[%clk 0:00:04.8]} 49... Rh3+
{[%clk 0:00:07.7]} 50. Ke4 {[%clk 0:00:04.6]} 50... Rxc3 {[%clk 0:00:08.4]} 0-1

[Event "Late-Titled-Tuesday-Blitz-September-05-2023"]
[Site "Chess.com"]
[Date "2023.09.05"]
[Round "8"]
[White "Perecke"]
[Black "Athanasios2"]
[Result "0-1"]
[WhiteElo "2497"]
[BlackElo "2703"]
[TimeControl "180+1"]
[EndTime "15:29:44 PDT"]
[Termination "Athanasios2 won by resignation"]

1. e4 {[%clk 0:03:00.9]} 1... c5 {[%clk 0:02:59]} 2. Nf3 {[%clk 0:03:00.9]} 2...
d6 {[%clk 0:02:57.8]} 3. d4 {[%clk 0:03:01.2]} 3... cxd4 {[%clk 0:02:58.7]} 4.
Nxd4 {[%clk 0:03:02.1]} 4... Nf6 {[%clk 0:02:56.3]} 5. Nc3 {[%clk 0:03:02.4]}
5... Nc6 {[%clk 0:02:57]} 6. Bg5 {[%clk 0:03:01.7]} 6... e6 {[%clk 0:02:55.4]}
7. Qd2 {[%clk 0:03:02]} 7... Be7 {[%clk 0:02:53]} 8. O-O-O {[%clk 0:03:01.7]}
8... O-O {[%clk 0:02:52.4]} 9. f4 {[%clk 0:02:59]} 9... Nxd4 {[%clk 0:02:48.7]}
10. Qxd4 {[%clk 0:02:58.2]} 10... Qa5 {[%clk 0:02:49]} 11. Kb1 {[%clk
0:02:54.4]} 11... h6 {[%clk 0:02:46.6]} 12. h4 {[%clk 0:02:53.6]} 12... Rd8
{[%clk 0:02:45.3]} 13. Bd3 {[%clk 0:02:48]} 13... Bd7 {[%clk 0:02:36]} 14. Qe3
{[%clk 0:02:43.6]} 14... Bc6 {[%clk 0:02:32.5]} 15. e5 {[%clk 0:02:32.5]} 15...
dxe5 {[%clk 0:02:29.3]} 16. fxe5 {[%clk 0:02:33.4]} 16... Ng4 {[%clk 0:02:20]}
17. Qg3 {[%clk 0:02:26]} 17... Bxg5 {[%clk 0:01:57.3]} 18. hxg5 {[%clk 0:02:26]}
18... Nxe5 {[%clk 0:01:29]} 19. gxh6 {[%clk 0:02:24.6]} 19... g6 {[%clk
0:01:27.3]} 20. Rh5 {[%clk 0:02:24.2]} 20... f5 {[%clk 0:01:16.7]} 21. h7+
{[%clk 0:02:05.2]} 21... Kh8 {[%clk 0:01:13.9]} 22. Rh6 {[%clk 0:01:58.5]} 22...
Nxd3 {[%clk 0:00:56.8]} 23. cxd3 {[%clk 0:01:42.2]} 23... Be8 {[%clk 0:00:46.4]}
24. d4 {[%clk 0:01:34.9]} 24... Rac8 {[%clk 0:00:42.7]} 25. d5 {[%clk
0:01:34.9]} 25... Qc7 {[%clk 0:00:39.1]} 26. d6 {[%clk 0:01:32.2]} 26... Qg7
{[%clk 0:00:39.7]} 27. Rhh1 {[%clk 0:01:25.8]} 27... e5 {[%clk 0:00:36.6]} 28.
Rd5 {[%clk 0:01:17.7]} 28... e4 {[%clk 0:00:35.5]} 29. Re5 {[%clk 0:01:17.9]}
29... Rd7 {[%clk 0:00:27.8]} 30. Nd5 {[%clk 0:01:12.6]} 30... Bf7 {[%clk
0:00:24.9]} 31. Re7 {[%clk 0:00:54]} 31... Rcd8 {[%clk 0:00:21.1]} 32. Rxd7
{[%clk 0:00:20.4]} 32... Rxd7 {[%clk 0:00:21.2]} 33. Ne7 {[%clk 0:00:10.3]}
33... Qf6 {[%clk 0:00:16.9]} 34. Rc1 {[%clk 0:00:01.7]} 34... Rd8 {[%clk
0:00:12.3]} 35. Rc7 {[%clk 0:00:01]} 35... f4 {[%clk 0:00:05.3]} 36. Qc3 {[%clk
0:00:01.1]} 36... Qxc3 {[%clk 0:00:03.6]} 37. bxc3 {[%clk 0:00:02]} 37... e3
{[%clk 0:00:04.5]} 38. Kc1 {[%clk 0:00:01.6]} 38... Kxh7 {[%clk 0:00:03.6]} 39.
Kd1 {[%clk 0:00:01.7]} 39... Kg7 {[%clk 0:00:03.8]} 40. Ke1 {[%clk 0:00:02.6]}
40... Kf6 {[%clk 0:00:04.4]} 41. Nc8 {[%clk 0:00:02.8]} 41... Be6 {[%clk
0:00:03.3]} 42. Nxa7 {[%clk 0:00:01.9]} 42... Rxd6 {[%clk 0:00:04]} 43. Rxb7
{[%clk 0:00:02.3]} 43... Ra6 {[%clk 0:00:04]} 44. Nb5 {[%clk 0:00:02]} 44...
Rxa2 {[%clk 0:00:04.5]} 45. Rb6 {[%clk 0:00:02.5]} 45... Ke5 {[%clk 0:00:04]}
46. Nd4 {[%clk 0:00:02.6]} 46... Bc4 {[%clk 0:00:03.7]} 47. Nf3+ {[%clk
0:00:02.5]} 47... Ke4 {[%clk 0:00:02.6]} 48. Rb1 {[%clk 0:00:01.8]} 48... Re2+
{[%clk 0:00:02.4]} 49. Kd1 {[%clk 0:00:01.9]} 49... Rxg2 {[%clk 0:00:02.5]} 50.
Nd4 {[%clk 0:00:02.4]} 50... Rg1+ {[%clk 0:00:02.8]} 51. Kc2 {[%clk 0:00:02.3]}
51... Bd3+ {[%clk 0:00:03.5]} 0-1